[Event "Championnat d'Europe de Blitz"]
[Date "2024.12.09"]
[White "Manea, Alexandru"]
[Black "Larkin, Vladyslav"]
[WhiteElo "2272"]
[BlackElo "2449"]
[Round "7.44"]
[Result "0-1"]
[TimeControl "180+2"]

1. e4 {[%clk 00:03:03]} d6 {[%emt 00:00:01] [%clk 00:03:04]} 2. d4 {[%emt
00:00:03] [%clk 00:03:02]} Nf6 {[%emt 00:00:03] [%clk 00:03:05]} 3. Nc3 {[%clk
00:03:02]} c6 {[%clk 00:03:06]} 4. Nf3 {[%emt 00:00:03] [%clk 00:03:01]} Bg4
{[%emt 00:00:01] [%clk 00:03:07]} 5. Be2 {[%emt 00:00:05] [%clk 00:02:58]} e6
{[%clk 00:03:08]} 6. h3 {[%emt 00:00:05] [%clk 00:02:55]} Bh5 {[%emt 00:00:01]
[%clk 00:03:09]} 7. Be3 {[%emt 00:00:31] [%clk 00:02:26]} Be7 {[%emt 00:00:02]
[%clk 00:03:10]} 8. Qd2 {[%emt 00:00:02] [%clk 00:02:25]} d5 {[%emt 00:00:03]
[%clk 00:03:09]} 9. exd5 {[%emt 00:00:04] [%clk 00:02:23]} Bxf3 {[%emt 00:00:04]
[%clk 00:03:07]} 10. Bxf3 {[%emt 00:00:02] [%clk 00:02:23]} cxd5 {[%emt
00:00:01] [%clk 00:03:08]} 11. Ne2 {[%emt 00:00:17] [%clk 00:02:08]} Nc6 {[%emt
00:00:03] [%clk 00:03:08]} 12. c3 {[%emt 00:00:01] [%clk 00:02:09]} O-O {[%emt
00:00:05] [%clk 00:03:05]} 13. O-O {[%emt 00:00:03] [%clk 00:02:08]} Na5 {[%emt
00:00:05] [%clk 00:03:02]} 14. Nf4 {[%emt 00:00:07] [%clk 00:02:02]} Nc4 {[%emt
00:00:23] [%clk 00:02:42]} 15. Qe2 {[%emt 00:00:03] [%clk 00:02:00]} Nd7 {[%emt
00:00:09] [%clk 00:02:36]} 16. Nd3 {[%emt 00:00:02] [%clk 00:01:59]} Qc7 {[%emt
00:00:05] [%clk 00:02:34]} 17. Bc1 {[%emt 00:00:06] [%clk 00:01:55]} Bd6 {[%emt
00:00:07] [%clk 00:02:29]} 18. b3 {[%emt 00:00:08] [%clk 00:01:48]} Na5 {[%emt
00:00:02] [%clk 00:02:29]} 19. Bb2 {[%emt 00:00:02] [%clk 00:01:49]} Rac8 {[%emt
00:00:02] [%clk 00:02:29]} 20. Rfe1 {[%emt 00:00:04] [%clk 00:01:45]} Qb6 {[%emt
00:00:15] [%clk 00:02:18]} 21. Rab1 {[%emt 00:00:05] [%clk 00:01:42]} Qa6 {[%emt
00:00:03] [%clk 00:02:16]} 22. Qd2 {[%emt 00:00:15] [%clk 00:01:29]} Nc6 {[%emt
00:00:07] [%clk 00:02:12]} 23. a4 {[%emt 00:00:32] [%clk 00:00:59]} Rfd8 {[%emt
00:00:07] [%clk 00:02:07]} 24. Be2 {[%emt 00:00:04] [%clk 00:00:56]} Na5 {[%emt
00:00:08] [%clk 00:02:01]} 25. Ba1 {[%emt 00:00:07] [%clk 00:00:51]} Qb6 {[%emt
00:00:04] [%clk 00:02:00]} 26. Qa2 {[%emt 00:00:06] [%clk 00:00:46]} Qc7 {[%emt
00:00:13] [%clk 00:01:50]} 27. Rbc1 {[%emt 00:00:12] [%clk 00:00:35]} Qb6 {[%emt
00:00:16] [%clk 00:01:37]} 28. b4 {[%emt 00:00:06] [%clk 00:00:30]} Nc4 {[%emt
00:00:01] [%clk 00:01:38]} 29. Nc5 {[%clk 00:00:32]} Qc7 {[%emt 00:00:08] [%clk
00:01:32]} 30. Bxc4 {[%emt 00:00:07] [%clk 00:00:26]} dxc4 {[%emt 00:00:01]
[%clk 00:01:33]} 31. Qc2 {[%emt 00:00:07] [%clk 00:00:21]} b6 {[%emt 00:00:03]
[%clk 00:01:32]} 32. Nxd7 {[%emt 00:00:03] [%clk 00:00:21]} Qxd7 {[%emt
00:00:01] [%clk 00:01:33]} 33. Bb2 {[%emt 00:00:03] [%clk 00:00:20]} h5 {[%emt
00:00:02] [%clk 00:01:32]} 34. Re4 {[%emt 00:00:03] [%clk 00:00:19]} Bb8 {[%emt
00:00:03] [%clk 00:01:32]} 35. Rce1 {[%emt 00:00:03] [%clk 00:00:18]} Qd5 {[%emt
00:00:03] [%clk 00:01:31]} 36. Bc1 {[%emt 00:00:04] [%clk 00:00:16]} Qf5 {[%emt
00:00:04] [%clk 00:01:28]} 37. Qe2 {[%emt 00:00:03] [%clk 00:00:15]} Rd5 {[%emt
00:00:03] [%clk 00:01:27]} 38. Rh4 {[%emt 00:00:08] [%clk 00:00:09]} Qg6 {[%emt
00:00:02] [%clk 00:01:28]} 39. Qe4 {[%emt 00:00:04] [%clk 00:00:07]} Qf6 {[%emt
00:00:19] [%clk 00:01:11]} 40. g3 {[%emt 00:00:03] [%clk 00:00:06]} Rf5 {[%emt
00:00:03] [%clk 00:01:10]} 41. Re2 {[%emt 00:00:01] [%clk 00:00:06]} Bxg3 {[%emt
00:00:04] [%clk 00:01:08]} 42. fxg3 {[%emt 00:00:04] [%clk 00:00:04]} Rf1+
{[%emt 00:00:02] [%clk 00:01:08]} 43. Kg2 {[%clk 00:00:06]} Rxc1 {[%emt
00:00:01] [%clk 00:01:09]} 44. Rf4 {[%clk 00:00:07]} Qh6 {[%emt 00:00:11] [%clk
00:01:00]} 45. Ref2 {[%clk 00:00:08]} Rf8 {[%emt 00:00:07] [%clk 00:00:56]} 46.
R4f3 {[%emt 00:00:02] [%clk 00:00:08]} Ra1 {[%emt 00:00:02] [%clk 00:00:56]} 47.
Rf4 {[%clk 00:00:09]} Rxa4 {[%emt 00:00:03] [%clk 00:00:54]} 48. Qb7 {[%clk
00:00:10]} Qg6 {[%emt 00:00:05] [%clk 00:00:52]} 49. Qd7 {[%emt 00:00:02] [%clk
00:00:10]} Ra1 {[%emt 00:00:06] [%clk 00:00:48]} 50. g4 {[%emt 00:00:08] [%clk
00:00:04]} h4 {[%emt 00:00:02] [%clk 00:00:48]} 51. Qe7 {[%emt 00:00:02] [%clk
00:00:05]} Qb1 {[%emt 00:00:08] [%clk 00:00:41]} 52. Rf1 {[%emt 00:00:02] [%clk
00:00:05]} Ra2+ {[%clk 00:00:42]} 53. R1f2 {[%emt 00:00:03] [%clk 00:00:04]}
Rxf2+ {[%emt 00:00:02] [%clk 00:00:42]} 54. Rxf2 {[%clk 00:00:05]} Qe4+ {[%emt
00:00:02] [%clk 00:00:42]} 55. Rf3 {[%emt 00:00:03] [%clk 00:00:04]} f6 {[%emt
00:00:01] [%clk 00:00:43]} 56. Qxa7 {[%emt 00:00:03] [%clk 00:00:04]} f5 {[%emt
00:00:02] [%clk 00:00:43]} 57. g5 {[%clk 00:00:06]} f4 {[%emt 00:00:03] [%clk
00:00:41]} 58. Qa2 {[%emt 00:00:03] [%clk 00:00:05]} Rf5 {[%emt 00:00:04] [%clk
00:00:40]} 59. g6 {[%emt 00:00:04] [%clk 00:00:03]} Rg5+ {[%emt 00:00:01] [%clk
00:00:41]} 60. Kf2 {[%clk 00:00:05]} Qxg6 {[%emt 00:00:04] [%clk 00:00:39]} 61.
Qa8+ {[%emt 00:00:03] [%clk 00:00:04]} Kh7 {[%emt 00:00:01] [%clk 00:00:40]} 62.
Rxf4 {[%clk 00:00:06]} Qc2+ {[%emt 00:00:02] [%clk 00:00:40]} 0-1

[Site "Europe Echecs"]

[Event "Championnat d'Europe de Blitz"]
[Date "2024.12.09"]
[White "Zawadzka, Jolanta"]
[Black "Gatineau, Yovann"]
[WhiteElo "2331"]
[BlackElo "2363"]
[Round "7.45"]
[Result "0-1"]
[TimeControl "180+2"]

1. e4 {[%clk 00:03:03]} c6 {[%clk 00:03:03]} 2. d4 {[%emt 00:00:03] [%clk
00:03:02]} d5 {[%emt 00:00:03] [%clk 00:03:04]} 3. Nd2 {[%clk 00:03:03]} dxe4
{[%clk 00:03:05]} 4. Nxe4 {[%emt 00:00:02] [%clk 00:03:03]} Nf6 {[%emt 00:00:01]
[%clk 00:03:06]} 5. Nxf6+ {[%emt 00:00:02] [%clk 00:03:03]} exf6 {[%emt
00:00:02] [%clk 00:03:06]} 6. c3 {[%emt 00:00:01] [%clk 00:03:04]} Bd6 {[%emt
00:00:02] [%clk 00:03:06]} 7. Bd3 {[%emt 00:00:02] [%clk 00:03:04]} Na6 {[%emt
00:00:02] [%clk 00:03:06]} 8. Qe2+ {[%emt 00:00:08] [%clk 00:02:58]} Kf8 {[%emt
00:00:25] [%clk 00:02:43]} 9. Qc2 {[%emt 00:00:08] [%clk 00:02:52]} h5 {[%emt
00:00:06] [%clk 00:02:39]} 10. Be3 {[%emt 00:00:05] [%clk 00:02:49]} Nc7 {[%emt
00:00:03] [%clk 00:02:38]} 11. Ne2 {[%emt 00:00:05] [%clk 00:02:46]} Nd5 {[%emt
00:00:23] [%clk 00:02:17]} 12. O-O-O {[%emt 00:00:11] [%clk 00:02:36]} Be6
{[%emt 00:00:08] [%clk 00:02:12]} 13. Kb1 {[%emt 00:00:02] [%clk 00:02:35]} g6
{[%emt 00:00:08] [%clk 00:02:07]} 14. Bc1 {[%emt 00:00:16] [%clk 00:02:21]} Kg7
{[%emt 00:00:02] [%clk 00:02:07]} 15. a3 {[%emt 00:00:11] [%clk 00:02:12]} b5
{[%emt 00:00:20] [%clk 00:01:48]} 16. Ng3 {[%emt 00:00:30] [%clk 00:01:44]} a5
{[%emt 00:00:15] [%clk 00:01:36]} 17. c4 {[%emt 00:00:16] [%clk 00:01:31]} bxc4
{[%emt 00:00:03] [%clk 00:01:34]} 18. Bxc4 {[%emt 00:00:02] [%clk 00:01:31]} Rb8
{[%emt 00:00:03] [%clk 00:01:33]} 19. Ka1 {[%emt 00:00:04] [%clk 00:01:30]} Qb6
{[%emt 00:00:12] [%clk 00:01:22]} 20. Rhe1 {[%emt 00:00:13] [%clk 00:01:19]}
Rhe8 {[%emt 00:00:04] [%clk 00:01:20]} 21. Ne4 {[%emt 00:00:04] [%clk 00:01:17]}
Qc7 {[%emt 00:00:27] [%clk 00:00:55]} 22. Nxd6 {[%emt 00:00:24] [%clk 00:00:55]}
Qxd6 {[%emt 00:00:01] [%clk 00:00:56]} 23. Qd2 {[%emt 00:00:02] [%clk 00:00:55]}
a4 {[%emt 00:00:15] [%clk 00:00:43]} 24. Bd3 {[%emt 00:00:17] [%clk 00:00:40]}
Ne7 {[%emt 00:00:05] [%clk 00:00:41]} 25. Be4 {[%emt 00:00:26] [%clk 00:00:15]}
Nf5 {[%emt 00:00:10] [%clk 00:00:33]} 26. d5 {[%emt 00:00:04] [%clk 00:00:13]}
cxd5 {[%emt 00:00:05] [%clk 00:00:30]} 27. Bxf5 {[%emt 00:00:05] [%clk
00:00:10]} Bxf5 {[%emt 00:00:04] [%clk 00:00:28]} 28. Rxe8 {[%emt 00:00:04]
[%clk 00:00:08]} Rxe8 {[%emt 00:00:01] [%clk 00:00:29]} 29. Qxd5 {[%emt
00:00:03] [%clk 00:00:07]} Qxh2 {[%emt 00:00:12] [%clk 00:00:19]} 30. Qc6 {[%emt
00:00:05] [%clk 00:00:04]} Rc8 {[%emt 00:00:09] [%clk 00:00:11]} 31. Qf3 {[%emt
00:00:03] [%clk 00:00:03]} Bg4 {[%emt 00:00:04] [%clk 00:00:10]} 32. Qb7 {[%emt
00:00:03] [%clk 00:00:03]} Rc7 {[%emt 00:00:03] [%clk 00:00:08]} 33. Qd5 {[%emt
00:00:02] [%clk 00:00:03]} Bxd1 {[%emt 00:00:02] [%clk 00:00:09]} 34. Qxd1
{[%clk 00:00:04]} Qe5 {[%clk 00:00:09]} 35. Qd2 {[%emt 00:00:01] [%clk
00:00:04]} g5 {[%emt 00:00:02] [%clk 00:00:10]} 36. Qd1 {[%emt 00:00:02] [%clk
00:00:04]} Qe4 {[%emt 00:00:03] [%clk 00:00:08]} 37. g3 {[%emt 00:00:02] [%clk
00:00:05]} Qc2 {[%emt 00:00:01] [%clk 00:00:09]} 38. Qxc2 {[%emt 00:00:02] [%clk
00:00:04]} Rxc2 {[%emt 00:00:01] [%clk 00:00:10]} 39. Be3 {[%clk 00:00:06]} h4
{[%emt 00:00:02] [%clk 00:00:11]} 40. gxh4 {[%emt 00:00:01] [%clk 00:00:06]}
gxh4 {[%clk 00:00:12]} 41. Kb1 {[%clk 00:00:07]} Re2 {[%emt 00:00:01] [%clk
00:00:13]} 42. b4 {[%emt 00:00:02] [%clk 00:00:08]} axb3 {[%emt 00:00:02] [%clk
00:00:13]} 43. a4 {[%emt 00:00:01] [%clk 00:00:09]} h3 {[%emt 00:00:01] [%clk
00:00:14]} 0-1

[Site "Europe Echecs"]

[Event "Championnat d'Europe de Blitz"]
[Date "2024.12.09"]
[White "Djurovic, Peko"]
[Black "Kilic, Eray"]
[WhiteElo "2253"]
[BlackElo "2459"]
[Round "7.46"]
[Result "0-1"]
[TimeControl "180+2"]

1. e4 {[%emt 00:00:01] [%clk 00:03:02]} c5 {[%emt 00:00:01] [%clk 00:03:03]} 2.
Nf3 {[%emt 00:00:02] [%clk 00:03:02]} d6 {[%emt 00:00:03] [%clk 00:03:05]} 3. d4
{[%emt 00:00:02] [%clk 00:02:59]} cxd4 {[%emt 00:00:02] [%clk 00:03:05]} 4. Nxd4
{[%emt 00:00:10] [%clk 00:02:52]} Nf6 {[%clk 00:03:06]} 5. Nc3 {[%emt 00:00:01]
[%clk 00:02:52]} a6 {[%emt 00:00:02] [%clk 00:03:07]} 6. Bg5 {[%emt 00:00:01]
[%clk 00:02:52]} e6 {[%emt 00:00:04] [%clk 00:03:05]} 7. f4 {[%emt 00:00:10]
[%clk 00:02:44]} Be7 {[%emt 00:00:01] [%clk 00:03:06]} 8. Qf3 {[%emt 00:00:02]
[%clk 00:02:44]} Qc7 {[%emt 00:00:01] [%clk 00:03:07]} 9. O-O-O {[%emt 00:00:07]
[%clk 00:02:39]} Nbd7 {[%emt 00:00:02] [%clk 00:03:07]} 10. g4 {[%emt 00:00:11]
[%clk 00:02:30]} h6 {[%emt 00:00:09] [%clk 00:02:59]} 11. Bxf6 {[%emt 00:00:07]
[%clk 00:02:26]} Bxf6 {[%emt 00:00:01] [%clk 00:03:00]} 12. h4 {[%emt 00:00:02]
[%clk 00:02:27]} Nb6 {[%emt 00:00:01] [%clk 00:03:01]} 13. Be2 {[%emt 00:00:32]
[%clk 00:01:56]} Bd7 {[%emt 00:00:28] [%clk 00:02:35]} 14. Kb1 {[%emt 00:00:02]
[%clk 00:01:56]} O-O-O {[%emt 00:00:09] [%clk 00:02:28]} 15. Qd3 {[%emt
00:00:27] [%clk 00:01:32]} Kb8 {[%emt 00:00:09] [%clk 00:02:20]} 16. g5 {[%emt
00:00:03] [%clk 00:01:31]} Be7 {[%clk 00:02:22]} 17. b3 {[%emt 00:00:37] [%clk
00:00:56]} Rc8 {[%emt 00:00:05] [%clk 00:02:18]} 18. Kb2 {[%emt 00:00:04] [%clk
00:00:54]} d5 {[%emt 00:00:16] [%clk 00:02:04]} 19. exd5 {[%emt 00:00:02] [%clk
00:00:54]} Bb4 {[%emt 00:00:01] [%clk 00:02:05]} 20. Nb1 {[%emt 00:00:20] [%clk
00:00:36]} Nxd5 {[%emt 00:00:02] [%clk 00:02:05]} 21. f5 {[%emt 00:00:03] [%clk
00:00:36]} Qe5 {[%emt 00:00:06] [%clk 00:02:00]} 22. Bf3 {[%emt 00:00:09] [%clk
00:00:29]} Nc3 {[%emt 00:00:21] [%clk 00:01:41]} 23. Nxc3 {[%emt 00:00:09] [%clk
00:00:23]} Bxc3+ {[%emt 00:00:02] [%clk 00:01:41]} 24. Kb1 {[%emt 00:00:07]
[%clk 00:00:16]} exf5 {[%emt 00:00:03] [%clk 00:01:41]} 25. Ne2 {[%emt 00:00:10]
[%clk 00:00:08]} Bb5 {[%emt 00:00:09] [%clk 00:01:34]} 26. Qd5 {[%emt 00:00:05]
[%clk 00:00:06]} Qxd5 {[%emt 00:00:04] [%clk 00:01:32]} 27. Rxd5 {[%emt
00:00:01] [%clk 00:00:06]} hxg5 {[%emt 00:00:04] [%clk 00:01:29]} 28. Rxf5
{[%emt 00:00:04] [%clk 00:00:05]} Bxe2 {[%emt 00:00:24] [%clk 00:01:07]} 29.
Bxe2 {[%clk 00:00:06]} Rxh4 {[%emt 00:00:02] [%clk 00:01:07]} 30. Rxh4 {[%emt
00:00:02] [%clk 00:00:06]} gxh4 {[%emt 00:00:01] [%clk 00:01:08]} 31. Rxf7
{[%emt 00:00:02] [%clk 00:00:06]} Re8 {[%clk 00:01:10]} 32. Rf2 {[%emt 00:00:05]
[%clk 00:00:04]} g5 {[%emt 00:00:04] [%clk 00:01:08]} 33. Kc1 {[%emt 00:00:03]
[%clk 00:00:03]} Re4 {[%emt 00:00:06] [%clk 00:01:04]} 34. Kd1 {[%emt 00:00:02]
[%clk 00:00:03]} g4 {[%emt 00:00:06] [%clk 00:00:59]} 35. Rf8+ {[%emt 00:00:02]
[%clk 00:00:04]} Ka7 {[%clk 00:01:00]} 36. Rg8 {[%clk 00:00:05]} h3 {[%emt
00:00:07] [%clk 00:00:55]} 37. Rxg4 {[%emt 00:00:02] [%clk 00:00:05]} h2 {[%emt
00:00:02] [%clk 00:00:56]} 0-1

[Site "Europe Echecs"]

[Event "Championnat d'Europe de Blitz"]
[Date "2024.12.09"]
[White "Radeva, Viktoria"]
[Black "Asllani, Muhamet"]
[WhiteElo "2275"]
[BlackElo "2112"]
[Round "7.47"]
[Result "1-0"]
[TimeControl "180+2"]

1. e4 {[%emt 02:46:49] [%clk 00:03:03]} e5 {[%clk 00:03:04]} 2. Nf3 {[%emt
00:00:02] [%clk 00:03:04]} Nc6 {[%clk 00:03:05]} 3. Nc3 {[%emt 00:00:01] [%clk
00:03:04]} Bc5 {[%emt 00:00:03] [%clk 00:03:06]} 4. Nxe5 {[%emt 00:00:06] [%clk
00:02:59]} Nxe5 {[%emt 00:00:04] [%clk 00:03:04]} 5. d4 {[%emt 00:00:01] [%clk
00:03:00]} Bd6 {[%emt 00:00:02] [%clk 00:03:04]} 6. dxe5 {[%emt 00:00:02] [%clk
00:02:59]} Bxe5 {[%clk 00:03:06]} 7. Bd3 {[%emt 00:00:04] [%clk 00:02:57]} d6
{[%emt 00:00:10] [%clk 00:02:58]} 8. Ne2 {[%emt 00:00:09] [%clk 00:02:50]} Ne7
{[%emt 00:00:04] [%clk 00:02:56]} 9. O-O {[%emt 00:00:05] [%clk 00:02:47]} c6
{[%emt 00:00:05] [%clk 00:02:53]} 10. f4 {[%emt 00:00:04] [%clk 00:02:45]} Bf6
{[%clk 00:02:54]} 11. c3 {[%emt 00:00:08] [%clk 00:02:39]} Qb6+ {[%emt 00:00:04]
[%clk 00:02:53]} 12. Kh1 {[%emt 00:00:03] [%clk 00:02:38]} Bg4 {[%emt 00:00:20]
[%clk 00:02:36]} 13. Qe1 {[%emt 00:00:17] [%clk 00:02:22]} O-O-O {[%emt
00:00:13] [%clk 00:02:25]} 14. a4 {[%emt 00:00:11] [%clk 00:02:13]} h5 {[%emt
00:00:23] [%clk 00:02:04]} 15. a5 {[%emt 00:00:01] [%clk 00:02:14]} Qc7 {[%emt
00:00:02] [%clk 00:02:04]} 16. Be3 {[%emt 00:00:09] [%clk 00:02:07]} Kb8 {[%emt
00:00:19] [%clk 00:01:47]} 17. Qf2 {[%emt 00:00:20] [%clk 00:01:49]} Nc8 {[%emt
00:00:06] [%clk 00:01:44]} 18. Nd4 {[%emt 00:00:04] [%clk 00:01:47]} h4 {[%emt
00:00:29] [%clk 00:01:17]} 19. h3 {[%emt 00:00:02] [%clk 00:01:46]} Bd7 {[%emt
00:00:06] [%clk 00:01:13]} 20. b4 {[%emt 00:00:01] [%clk 00:01:46]} Rhe8 {[%emt
00:00:15] [%clk 00:01:00]} 21. Rfb1 {[%emt 00:00:21] [%clk 00:01:28]} c5 {[%emt
00:00:09] [%clk 00:00:53]} 22. bxc5 {[%emt 00:00:03] [%clk 00:01:27]} dxc5
{[%emt 00:00:02]} 23. Nb3 {[%emt 00:00:27] [%clk 00:01:01]} c4 {[%emt 00:00:09]
[%clk 00:00:48]} 24. Nc5 {[%emt 00:00:01] [%clk 00:01:02]} Ka8 {[%emt 00:00:21]
[%clk 00:00:28]} 25. Rxb7 {[%emt 00:00:02] [%clk 00:01:02]} Qc6 {[%emt 00:00:03]
[%clk 00:00:28]} 26. Bxc4 {[%emt 00:00:11] [%clk 00:00:53]} Be6 {[%clk
00:00:29]} 27. Rab1 {[%emt 00:00:08] [%clk 00:00:47]} Nd6 {[%emt 00:00:04] [%clk
00:00:28]} 28. Rxa7+ {[%emt 00:00:13] [%clk 00:00:36]} Kxa7 {[%emt 00:00:01]
[%clk 00:00:29]} 29. Nxe6+ {[%emt 00:00:09] [%clk 00:00:29]} Ka8 {[%clk
00:00:30]} 30. Bd5 {[%clk 00:00:30]} Qxd5 {[%emt 00:00:03] [%clk 00:00:29]} 31.
exd5 {[%emt 00:00:02] [%clk 00:00:30]} fxe6 {[%emt 00:00:02] [%clk 00:00:30]}
32. Bb6 {[%emt 00:00:08] [%clk 00:00:23]} Rc8 {[%emt 00:00:03] [%clk 00:00:29]}
33. Qe2 {[%emt 00:00:10] [%clk 00:00:15]} Nc4 {[%emt 00:00:05] [%clk 00:00:27]}
34. d6 {[%emt 00:00:02] [%clk 00:00:15]} Rc6 {[%emt 00:00:12] [%clk 00:00:17]}
35. d7 {[%emt 00:00:01] [%clk 00:00:16]} Rb8 {[%clk 00:00:19]} 36. Qe4 {[%emt
00:00:03] [%clk 00:00:14]} Kb7 {[%clk 00:00:20]} 37. a6+ {[%emt 00:00:04] [%clk
00:00:13]} 1-0

[Site "Europe Echecs"]

[Event "Championnat d'Europe de Blitz"]
[Date "2024.12.09"]
[White "Popovic, Milos T"]
[Black "Kralevski, Aleksander"]
[WhiteElo "2334"]
[BlackElo "2028"]
[Round "7.48"]
[Result "1-0"]
[TimeControl "180+2"]

1. d4 {[%emt 00:00:01] [%clk 00:03:02]} d5 {[%emt 00:00:03] [%clk 00:03:03]} 2.
Bf4 {[%clk 00:03:03]} Nf6 {[%emt 00:00:01] [%clk 00:03:04]} 3. e3 {[%clk
00:03:04]} c5 {[%emt 00:00:04]} 4. c3 {[%emt 00:00:01] [%clk 00:03:02]} Qb6
{[%emt 00:00:05] [%clk 00:03:02]} 5. Qb3 {[%emt 00:00:01] [%clk 00:03:02]} Nc6
{[%emt 00:00:23] [%clk 00:02:41]} 6. Nd2 {[%emt 00:00:01] [%clk 00:03:03]} Bf5
{[%emt 00:00:10] [%clk 00:02:33]} 7. h3 {[%emt 00:00:24] [%clk 00:02:41]} e6
{[%emt 00:00:06] [%clk 00:02:29]} 8. Ngf3 {[%emt 00:00:02] [%clk 00:02:41]} h6
{[%emt 00:00:11] [%clk 00:02:20]} 9. Be2 {[%emt 00:00:10] [%clk 00:02:33]} Be7
{[%emt 00:00:07] [%clk 00:02:15]} 10. O-O {[%emt 00:00:03] [%clk 00:02:32]} O-O
{[%emt 00:00:02] [%clk 00:02:15]} 11. Rfe1 {[%emt 00:00:35] [%clk 00:01:58]}
Rfc8 {[%emt 00:00:11] [%clk 00:02:06]} 12. a3 {[%emt 00:00:17] [%clk 00:01:43]}
c4 {[%emt 00:00:25] [%clk 00:01:44]} 13. Qxb6 {[%emt 00:00:01] [%clk 00:01:44]}
axb6 {[%clk 00:01:45]} 14. Rac1 {[%clk 00:01:45]} Ne4 {[%emt 00:00:12] [%clk
00:01:35]} 15. Nxe4 {[%emt 00:00:03] [%clk 00:01:44]} Bxe4 {[%clk 00:01:36]} 16.
Nd2 {[%emt 00:00:01] [%clk 00:01:45]} Bg6 {[%emt 00:00:06] [%clk 00:01:32]} 17.
e4 {[%emt 00:00:02] [%clk 00:01:44]} b5 {[%emt 00:00:10] [%clk 00:01:24]} 18.
exd5 {[%emt 00:00:02] [%clk 00:01:44]} exd5 {[%emt 00:00:01] [%clk 00:01:25]}
19. Bf3 {[%emt 00:00:02] [%clk 00:01:45]} Rd8 {[%emt 00:00:06] [%clk 00:01:21]}
20. Nf1 {[%emt 00:00:03] [%clk 00:01:43]} Bf6 {[%emt 00:00:37] [%clk 00:00:47]}
21. Ne3 {[%clk 00:01:44]} Ne7 {[%emt 00:00:04] [%clk 00:00:45]} 22. Ng4 {[%emt
00:00:07] [%clk 00:01:38]} Nf5 {[%emt 00:00:25] [%clk 00:00:23]} 23. Nxf6+
{[%emt 00:00:02] [%clk 00:01:38]} gxf6 {[%emt 00:00:01] [%clk 00:00:23]} 24. g4
{[%emt 00:00:18] [%clk 00:01:22]} Nh4 {[%emt 00:00:12] [%clk 00:00:14]} 25. Bh1
{[%clk 00:01:23]} Bd3 {[%emt 00:00:09] [%clk 00:00:08]} 26. Bxh6 {[%emt
00:00:09] [%clk 00:01:16]} 1-0

[Site "Europe Echecs"]